bitfinex-derivatives/quotes_BTCF0:USTF0_20250320
["timestamp","ask_amount","ask_price","bid_price","bid_amount"]
[1742478063977,0.0584393,85592.0,85579.0,0.067]
[1742478064182,0.1168832,85591.0,85587.0,0.3608]
[1742478064370,0.1753234,85591.0,85590.0,0.1753128]
[1742478064573,0.0584402,85591.0,85590.0,1.6753128]
[1742478064774,0.0584402,85591.0,85590.0,1.8660328]
[1742478064975,4e-05,85592.0,85591.0,0.1168791]
[1742478065178,4e-05,85592.0,85591.0,0.1870791]
[1742478065375,0.1169177,85592.0,85591.0,0.1870791]
[1742478065576,0.1169177,85592.0,85591.0,0.0702]
[1742478065979,0.3494177,85592.0,85591.0,0.0702]
[1742478066184,0.11689,85583.0,85582.0,0.3608]
[1742478066568,0.24889,85583.0,85582.0,0.3608]
[1742478067179,0.24889,85583.0,85582.0,0.4776914]
[1742478067779,0.24989,85583.0,85582.0,0.5462914]
[1742478067989,0.24989,85583.0,85582.0,0.4294]
[1742478068283,0.28199,85583.0,85582.0,0.3608]
[1742478068484,0.24989,85583.0,85582.0,0.3608]
[1742478068868,0.24989,85583.0,85582.0,0.4776914]
[1742478069291,0.24989,85583.0,85582.0,0.3608]
[1742478069671,0.24889,85583.0,85582.0,0.3608]
[1742478069873,0.34889,85583.0,85582.0,0.3608]
[1742478070176,0.34889,85583.0,85577.0,0.00017528]
[1742478070177,0.1168968,85578.0,85577.0,0.00017528]
[1742478070378,0.1169009,85575.0,85566.0,0.0712]
[1742478070587,0.1487009,85575.0,85571.0,0.1169063]
[1742478070778,0.1487009,85575.0,85566.0,0.0712]
[1742478070779,0.1753671,85568.0,85566.0,0.0712]
[1742478070985,0.1753671,85568.0,85567.0,0.0702]
[1742478071184,0.1753671,85568.0,85567.0,0.1871119]
[1742478071582,0.1753671,85568.0,85567.0,0.2583119]
[1742478071777,0.1753671,85568.0,85563.0,0.116917]
[1742478071778,0.1169146,85565.0,85563.0,0.116917]
[1742478071973,0.1169146,85565.0,85564.0,0.116916]
[1742478072182,0.4777027,85574.0,85573.0,0.1169037]
[1742478072391,0.1791251,85583.0,85573.0,0.1169037]
[1742478072587,0.11707488,85576.0,85575.0,0.1169009]
[1742478072784,0.00017528,85576.0,85575.0,0.2515009]
[1742478072984,0.00017528,85576.0,85575.0,0.3723009]
[1742478073298,0.11707488,85576.0,85575.0,1.8723009]
[1742478074578,0.20917715,85582.0,85581.0,0.1168927]
[1742478074789,0.1,85600.0,85579.0,0.3608]
[1742478075078,0.0584395,85591.0,85587.0,0.3608]
[1742478075278,0.1168818,85589.0,85588.0,1.7514827]
[1742478075491,0.1168818,85589.0,85588.0,1.6859827]
[1742478075691,0.1168818,85589.0,85588.0,0.1859827]
[1742478075886,0.1168818,85589.0,85588.0,0.2566827]
[1742478076396,0.1168818,85589.0,85588.0,0.1398]
[1742478076693,0.1168818,85589.0,85588.0,0.2566832]
[1742478076985,0.1168818,85589.0,85588.0,0.0691]
[1742478077391,0.1168818,85589.0,85588.0,0.1859832]
[1742478077893,0.1168818,85589.0,85588.0,0.0691]
[1742478078193,0.1168818,85589.0,85588.0,0.1859832]
[1742478078583,0.0584371,85596.0,85589.0,0.0584409]
[1742478078784,0.0584402,85590.0,85588.0,0.1982411]
[1742478078984,0.175322,85590.0,85589.0,0.2376007]
[1742478079181,0.1168873,85585.0,85584.0,0.1759284]
[1742478079383,0.11689,85583.0,85582.0,0.1291456]
[1742478079788,0.1168884,85585.0,85584.0,0.1168873]
[1742478080187,0.1168884,85585.0,85584.0,0.0584443]
[1742478080390,0.11689,85583.0,85582.0,0.0689]
[1742478080594,0.1168927,85581.0,85580.0,0.11706938]
[1742478080790,0.1168927,85581.0,85580.0,0.18596938]
[1742478080989,0.1168927,85581.0,85580.0,0.18735476]
[1742478081183,0.1168912,85583.0,85580.0,0.07046066]
[1742478081382,0.1168912,85583.0,85582.0,0.1753357]
[1742478081586,0.1168927,85581.0,85580.0,0.18735386]
[1742478082093,0.1158927,85581.0,85580.0,0.18735386]
[1742478082289,4e-05,85585.0,85584.0,0.1168886]
[1742478082481,0.1169273,85585.0,85584.0,0.1879886]
[1742478082686,0.1168873,85585.0,85584.0,0.1879886]
[1742478082888,0.1168873,85585.0,85584.0,0.07248538]
[1742478083386,4e-05,85586.0,85585.0,0.1168873]
[1742478083588,0.1169259,85586.0,85585.0,0.1879873]
[1742478083995,0.1169259,85586.0,85585.0,0.18937268]
[1742478084394,0.5777259,85586.0,85585.0,0.00138538]
[1742478084584,0.1168927,85581.0,85580.0,0.00117528]
[1742478084786,0.75693221,85581.0,85580.0,0.00117528]
[1742478085097,0.1169173,85566.0,85565.0,0.1753671]
[1742478085294,0.12056,85566.0,85565.0,0.1169146]
[1742478086190,0.12056,85566.0,85565.0,0.1828146]
[1742478086388,0.19036,85566.0,85565.0,0.1828146]
[1742478086682,0.3072732,85566.0,85565.0,0.1828146]
[1742478087199,0.3072732,85566.0,85565.0,0.1848146]
[1742478087496,0.1867132,85566.0,85565.0,0.0679]
[1742478087697,0.1169242,85558.0,85541.0,0.12032]
[1742478087888,0.1169433,85544.0,85543.0,0.0659]
[1742478088287,0.1149433,85544.0,85543.0,0.0659]
[1742478089292,0.1169447,85543.0,85537.0,0.34607901]
[1742478089486,0.1805447,85543.0,85537.0,0.34607901]
[1742478089694,0.24177596,85543.0,85537.0,0.34607901]
[1742478089988,0.1169515,85538.0,85537.0,0.34607901]
[1742478090192,0.5047515,85538.0,85537.0,0.34607901]
[1742478090393,0.1169529,85537.0,85536.0,0.071]
[1742478090600,0.1169542,85536.0,85535.0,0.00017528]
[1742478090899,0.2870542,85536.0,85535.0,0.00017528]
[1742478091101,0.1169679,85526.0,85525.0,0.071]
[1742478091399,0.0584802,85532.0,85524.0,0.0584848]
[1742478091597,0.1169644,85530.0,85529.0,0.1169633]
[1742478091796,0.1406,85536.0,85532.0,0.1169589]
[1742478092001,0.4192763,85538.0,85532.0,0.0584795]
[1742478092188,0.1169583,85533.0,85532.0,0.0584795]
[1742478092394,0.3608,85538.0,85533.0,0.1373]
[1742478092395,0.116957,85534.0,85533.0,0.1373]
[1742478092802,0.116997,85534.0,85533.0,0.3748983]
[1742478093399,4e-05,85534.0,85533.0,0.3749383]
[1742478093800,0.0584772,85536.0,85533.0,0.3164585]
[1742478093992,0.1754275,85540.0,85539.0,0.1169474]
[1742478094196,0.00017539,85543.0,85542.0,0.116946]
[1742478094396,0.00017539,85543.0,85542.0,0.254946]
[1742478095007,4e-05,85562.0,85552.0,0.1169324]
[1742478095211,0.0677,85577.0,85570.0,0.1753535]
[1742478095503,0.0677,85577.0,85575.0,0.4776996]
[1742478095702,0.1237237,85581.0,85580.0,0.1168941]
[1742478095902,0.1168982,85577.0,85576.0,0.2467896]
[1742478096091,0.1168982,85577.0,85576.0,0.12104]
[1742478096696,0.1169037,85573.0,85572.0,0.00017528]
[1742478097201,0.1169037,85573.0,85572.0,0.11708028]
[1742478097893,0.001,85573.0,85572.0,0.11708028]
[1742478098097,0.001,85573.0,85572.0,0.23832028]
[1742478100198,0.1179037,85573.0,85572.0,0.23832028]
[1742478100801,0.001,85573.0,85572.0,0.23832028]
[1742478101398,0.0718,85573.0,85572.0,0.23832028]
[1742478101600,0.001,85573.0,85572.0,0.23832028]
[1742478103707,0.072,85588.0,85572.0,0.35141528]
[1742478103910,0.1168892,85584.0,85580.0,0.4776941]
[1742478104212,0.1169302,85583.0,85580.0,0.4776941]
[1742478104600,4e-05,85583.0,85580.0,0.5984941]
[1742478104907,0.0707,85585.0,85580.0,0.5984941]
[1742478105092,0.00017528,85589.0,85585.0,0.1168873]
[1742478105292,0.00017528,85589.0,85585.0,0.2376873]
[1742478105494,0.0584419,85588.0,85585.0,0.2376873]
[1742478105802,0.0707,85587.0,85585.0,0.2376473]
[1742478106202,0.0707,85587.0,85585.0,1.6168873]
[1742478106393,4e-05,85588.0,85585.0,1.7376473]
[1742478106599,0.0707,85594.0,85593.0,0.1168763]
[1742478106801,0.187575,85594.0,85593.0,0.2375963]
[1742478107001,0.187575,85594.0,85593.0,0.2375563]
[1742478107605,0.0707,85594.0,85593.0,0.1168763]
[1742478107808,0.0707,85594.0,85593.0,0.2375163]
[1742478108110,0.193575,85594.0,85593.0,0.1168763]
[1742478108802,0.0767,85594.0,85593.0,0.2373963]
[1742478109107,0.0767,85594.0,85593.0,1.7373963]
[1742478109313,0.0827,85594.0,85593.0,1.7373563]
[1742478109501,0.199575,85594.0,85593.0,1.7373563]
[1742478109697,0.1411378,85594.0,85591.0,0.1168783]
[1742478109909,0.1168777,85593.0,85592.0,0.1168769]
[1742478110104,0.0827,85594.0,85593.0,0.1168763]
[1742478110310,0.0827,85594.0,85593.0,0.1885763]
[1742478110512,0.0827,85594.0,85593.0,0.3090163]
[1742478110810,0.193575,85594.0,85593.0,0.3090163]
[1742478111005,0.0817,85594.0,85593.0,0.2560763]
[1742478111212,0.198575,85594.0,85593.0,0.3764363]
[1742478112013,0.0817,85594.0,85593.0,0.3764363]
[1742478112211,0.0817,85594.0,85593.0,0.3763163]
[1742478112416,0.0817,85594.0,85593.0,0.2560763]
[1742478112607,0.0767,85594.0,85593.0,1.7560763]
[1742478112819,0.012,85594.0,85593.0,1.7560763]
[1742478112999,0.012,85594.0,85593.0,1.8763163]
[1742478113709,0.012,85594.0,85593.0,1.7560763]
[1742478113911,0.012,85594.0,85593.0,1.8762363]
[1742478114220,0.128875,85594.0,85593.0,0.1843763]
[1742478114405,0.128875,85594.0,85593.0,0.3044963]
[1742478114608,0.012,85594.0,85593.0,0.3044963]
[1742478114806,0.012,85594.0,85593.0,0.1843763]
[1742478115006,0.012,85594.0,85593.0,0.3044163]
[1742478115315,0.128875,85594.0,85593.0,0.1843763]
[1742478115514,0.128875,85594.0,85593.0,0.3044163]
[1742478115901,0.012,85594.0,85593.0,0.3044163]
[1742478116116,0.0803,85594.0,85593.0,0.1843763]
[1742478116303,0.0803,85594.0,85593.0,0.2557763]
[1742478116609,0.0803,85594.0,85593.0,0.3757363]
[1742478116811,0.0803,85594.0,85593.0,0.2557763]
[1742478117616,0.012,85594.0,85593.0,0.3756563]
[1742478118011,0.012,85594.0,85593.0,0.5057763]
[1742478118314,4e-05,85596.0,85595.0,0.1168736]
[1742478118513,4e-05,85596.0,85595.0,0.3768736]
[1742478118716,0.0683,85599.0,85598.0,0.1168695]
[1742478119106,0.0683,85599.0,85598.0,0.2519695]
[1742478119316,0.0683,85599.0,85598.0,1.7519695]
[1742478119709,0.0683,85599.0,85598.0,1.8716895]
[1742478120013,0.0694,85612.0,85599.0,0.1168681]
[1742478120207,0.0674,85611.0,85605.0,0.1168552]
[1742478120410,0.1752896,85608.0,85607.0,0.1168572]
[1742478120712,0.058429,85608.0,85607.0,0.2365772]
[1742478121218,0.197929,85608.0,85607.0,0.2365772]
[1742478121613,0.197929,85608.0,85607.0,0.11972]
[1742478122309,0.1395,85608.0,85607.0,0.1168572]
[1742478122508,0.2563559,85608.0,85607.0,0.2364572]
[1742478122916,0.1395,85608.0,85607.0,0.2364572]
[1742478123213,0.1405,85608.0,85607.0,0.3064572]
[1742478123423,0.1405,85608.0,85607.0,0.2562572]
[1742478123603,0.1405,85608.0,85607.0,0.3064172]
[1742478124412,0.2573559,85608.0,85607.0,0.3064172]
[1742478124626,0.1405,85608.0,85607.0,0.3064172]
[1742478124823,0.2573559,85608.0,85607.0,0.3064172]
[1742478125224,0.11686,85605.0,85604.0,0.05843]
[1742478125618,0.25316,85605.0,85604.0,0.05843]
[1742478125817,0.1363,85605.0,85604.0,0.05843]
[1742478126014,0.1363,85605.0,85604.0,0.13063]
[1742478126213,0.0671,85605.0,85604.0,0.13063]
[1742478126414,4e-05,85609.0,85608.0,0.1168559]
[1742478126619,0.1168945,85609.0,85608.0,0.1168559]
[1742478126824,0.1168572,85607.0,85606.0,0.0584292]
[1742478127219,0.2071,85607.0,85605.0,0.0584299]
[1742478127432,0.2071,85607.0,85606.0,0.1168586]
[1742478128134,0.2071,85607.0,85606.0,0.3031586]
[1742478128428,0.2071,85607.0,85606.0,0.1835586]
[1742478128824,0.2071,85607.0,85606.0,0.3031586]
[1742478129028,0.2071,85607.0,85606.0,0.3031186]
[1742478129229,0.2071,85607.0,85606.0,0.1835586]
[1742478129430,0.2071,85607.0,85606.0,0.3030786]
[1742478129626,0.2071,85607.0,85606.0,0.1835586]
[1742478129824,0.1366,85607.0,85606.0,0.3030786]
[1742478130027,0.1366,85607.0,85606.0,0.3862867]
[1742478130231,0.1366,85607.0,85606.0,0.3745786]
[1742478130431,0.0681,85607.0,85606.0,0.3745786]
[1742478130830,0.1395,85607.0,85606.0,0.2363786]
[1742478131028,0.1395,85607.0,85606.0,0.1168586]
[1742478131235,0.1395,85607.0,85606.0,0.2364986]
[1742478132936,0.1395,85607.0,85606.0,0.3086986]
[1742478133328,0.1395,85607.0,85606.0,0.3085386]
[1742478133535,0.1395,85607.0,85606.0,0.1890586]
[1742478133734,0.1395,85607.0,85606.0,0.3084986]
[1742478134035,0.1395,85607.0,85606.0,0.1890586]
[1742478134338,0.0681,85607.0,85606.0,0.3084986]
[1742478134536,0.0681,85607.0,85606.0,0.3776986]
[1742478135039,4e-05,85626.0,85625.0,0.1168327]
[1742478135238,4e-05,85626.0,85625.0,0.5972327]
[1742478135539,4e-05,85626.0,85625.0,2.0972327]
[1742478136130,0.00962513,85626.0,85625.0,2.0972327]
[1742478137229,0.22645643,85626.0,85625.0,0.1196]
[1742478137433,0.1168422,85618.0,85617.0,0.00017528]
[1742478137628,0.5776422,85618.0,85617.0,0.00017528]
[1742478137832,0.1168545,85609.0,85608.0,0.1752805]
[1742478138030,0.1168545,85609.0,85608.0,0.0584274]
[1742478138231,0.1168559,85608.0,85607.0,0.4776572]
[1742478138739,0.2536559,85608.0,85607.0,0.4776572]
[1742478138936,0.26324103,85608.0,85607.0,0.4776572]
[1742478139130,0.14638513,85608.0,85607.0,0.4776572]
[1742478139640,0.14638513,85608.0,85607.0,0.6151572]
[1742478140235,0.14638513,85608.0,85607.0,0.7367572]
[1742478140540,0.14638513,85608.0,85607.0,0.7401572]
[1742478140735,0.00958513,85608.0,85607.0,0.7381572]
[1742478140931,0.00958513,85608.0,85607.0,0.7391572]
[1742478141241,0.15828513,85608.0,85607.0,0.7371572]
[1742478142529,0.15828513,85608.0,85607.0,0.4796572]
[1742478142733,0.27514103,85608.0,85607.0,0.4796572]
[1742478142942,0.30724103,85608.0,85607.0,0.4796572]
[1742478143147,0.27514103,85608.0,85607.0,0.4796572]
[1742478143443,0.15828513,85608.0,85607.0,0.4796572]
[1742478143635,0.15828513,85608.0,85607.0,0.4786572]
[1742478143948,0.15828513,85608.0,85607.0,0.6195572]
[1742478144345,0.08488513,85608.0,85607.0,0.6195572]
[1742478144641,0.00958513,85608.0,85607.0,0.6195572]
[1742478145346,0.00017528,85616.0,85615.0,0.1168463]
[1742478145541,0.00017528,85616.0,85615.0,0.7408263]
[1742478145939,0.13980775,85618.0,85617.0,0.1168436]
[1742478146145,0.13980775,85618.0,85617.0,0.3668436]
[1742478146338,0.1425,85626.0,85625.0,0.1168327]
[1742478146539,0.1425,85626.0,85625.0,0.2367527]
[1742478146739,0.1425,85626.0,85625.0,0.3821527]
[1742478147139,4e-05,85631.0,85626.0,0.1168313]
[1742478147339,4e-05,85631.0,85626.0,0.2622313]
[1742478147843,0.142,85634.0,85626.0,0.5422313]
[1742478148145,0.142,85634.0,85633.0,0.1168217]
[1742478148347,0.142,85634.0,85632.0,0.0584115]
[1742478148543,0.142,85634.0,85627.0,0.1782146]
[1742478148748,0.2588208,85634.0,85633.0,0.1168217]
[1742478148939,0.142,85634.0,85633.0,0.1168217]
[1742478149952,0.142,85634.0,85633.0,0.2564217]
[1742478150141,0.17470968,85640.0,85636.0,0.0584084]
[1742478150348,0.17470968,85640.0,85639.0,0.1168136]
[1742478150752,0.17470968,85648.0,85647.0,0.1168026]
[1742478151054,0.20902636,85654.0,85653.0,0.1167945]
[1742478151236,0.32581946,85654.0,85653.0,0.4775945]
[1742478151441,0.20902636,85654.0,85653.0,0.4775945]
[1742478151646,0.32581946,85654.0,85653.0,1.9775945]
[1742478151951,0.20902636,85654.0,85653.0,0.4775945]
[1742478152341,0.20902636,85654.0,85653.0,0.6224945]
[1742478153847,0.20902636,85654.0,85653.0,0.7425345]
[1742478154446,0.20902636,85654.0,85653.0,2.2425345]
[1742478154650,4e-05,85656.0,85655.0,0.1167917]
[1742478154853,4e-05,85656.0,85655.0,0.3667917]
[1742478155053,4e-05,85656.0,85655.0,0.1167917]
[1742478156851,4e-05,85656.0,85655.0,1.9775917]
[1742478157050,4e-05,85667.0,85666.0,0.1167767]
[1742478157250,4e-05,85667.0,85666.0,0.5975367]
[1742478157856,0.0708,85670.0,85669.0,0.1167727]
[1742478158346,0.00057757,85670.0,85669.0,0.1167727]
[1742478158652,0.61757616,85685.0,85684.0,0.1167522]
[1742478158853,0.20927616,85685.0,85684.0,0.1167522]
[1742478159351,0.20927616,85685.0,85684.0,0.5404522]
[1742478159657,0.16363736,85685.0,85684.0,0.5404522]
[1742478159961,0.1794,85700.0,85699.0,0.1167318]
[1742478160145,0.2794,85700.0,85697.0,0.1751008]
[1742478160345,0.1794,85700.0,85699.0,0.1167318]
[1742478160549,0.2961304,85700.0,85699.0,0.1167318]
[1742478161253,0.18899165,85700.0,85699.0,0.1167318]
[1742478161652,0.25989165,85700.0,85699.0,0.1167318]
[1742478163754,0.18549165,85700.0,85699.0,0.1167318]
[1742478163948,0.18549165,85700.0,85699.0,0.1933318]
[1742478164653,0.18549165,85700.0,85699.0,0.2436918]
[1742478164844,0.1759,85700.0,85699.0,0.2437318]
[1742478165044,0.1759,85700.0,85699.0,0.1237318]
[1742478165249,0.1759,85700.0,85699.0,0.1217318]
[1742478165448,0.1759,85700.0,85699.0,0.1983318]
[1742478165655,0.1759,85700.0,85699.0,0.2688318]
[1742478166054,0.105,85700.0,85699.0,0.5188318]
[1742478166256,0.1803,85700.0,85699.0,0.2688318]
[1742478166455,0.1803,85700.0,85699.0,0.2648318]
[1742478166760,0.1803,85700.0,85699.0,0.2658318]
[1742478166957,0.1803,85700.0,85699.0,0.2668318]
[1742478167756,0.1803,85700.0,85699.0,0.2638318]
[1742478168157,0.105,85700.0,85699.0,0.2638318]
[1742478168352,0.105,85700.0,85699.0,0.1872318]
[1742478168862,0.105,85700.0,85699.0,0.2602318]
[1742478169051,0.2533,85700.0,85699.0,0.2602318]
[1742478169552,0.1798,85700.0,85699.0,0.2602318]
[1742478169948,0.2533,85700.0,85699.0,0.2602318]
[1742478170550,0.2533,85700.0,85699.0,0.1872318]
[1742478170746,0.105,85700.0,85699.0,0.1872318]
[1742478170951,0.11446007,85700.0,85699.0,0.5135318]
[1742478171356,0.105,85700.0,85699.0,0.5135318]
[1742478172568,0.105,85700.0,85699.0,0.5867318]
[1742478172753,0.105,85700.0,85699.0,2.0867318]
[1742478173362,0.0144055,85700.0,85699.0,2.0867318]
[1742478173559,1e-07,85702.0,85701.0,0.1167291]
[1742478173761,0.078,85722.0,85721.0,0.1167018]
[1742478173958,0.1319455,85729.0,85721.0,0.63428]
[1742478174161,4e-05,85732.0,85730.0,0.1166896]
[1742478174361,4e-05,85732.0,85731.0,0.3902082]
[1742478174664,4e-05,85732.0,85731.0,0.6602082]
[1742478175057,4e-05,85732.0,85731.0,2.1602082]
[1742478175258,0.0097626,85732.0,85731.0,2.1602082]
[1742478175665,0.0097626,85732.0,85731.0,1.8901682]
[1742478175867,0.0097226,85732.0,85731.0,1.6940882]
[1742478176067,0.0097226,85732.0,85731.0,1.7367682]
[1742478176670,0.0097226,85732.0,85731.0,1.8139682]
[1742478176852,0.2303226,85732.0,85731.0,1.8139682]
[1742478177052,0.2303226,85732.0,85731.0,0.3139682]
[1742478177464,0.2303226,85732.0,85731.0,0.1938882]
[1742478179469,0.2303226,85732.0,85731.0,0.1166882]
[1742478179974,0.2206,85732.0,85731.0,0.1166882]
[1742478180164,4e-05,85734.0,85733.0,0.1166855]
[1742478180858,0.0787,85741.0,85740.0,0.116676]
[1742478181452,0.08843693,85741.0,85740.0,0.116676]
[1742478182363,0.0787,85741.0,85740.0,0.116676]
[1742478182663,0.0787,85741.0,85740.0,0.191276]
[1742478182855,0.1912664,85747.0,85746.0,0.1166678]
[1742478183263,0.0746,85747.0,85746.0,0.1166678]
[1742478183563,0.08430435,85747.0,85746.0,0.1166678]
[1742478183763,0.20097075,85747.0,85746.0,0.1166678]
[1742478183965,0.08430435,85747.0,85746.0,0.2647678]
[1742478184166,0.27937075,85747.0,85746.0,0.2647678]
[1742478184558,0.16270435,85747.0,85746.0,0.2647678]
[1742478184957,0.00970435,85747.0,85746.0,0.2647678]
[1742478185364,0.00970435,85747.0,85746.0,0.54336009]
[1742478185957,0.00970435,85747.0,85746.0,2.04336009]
[1742478186158,4e-05,85767.0,85755.0,0.0583274]
[1742478186465,4e-05,85767.0,85766.0,0.4774406]
[1742478187165,0.3608,85797.0,85766.0,1.8608]
[1742478187360,0.1166188,85782.0,85781.0,0.4774184]
[1742478187565,0.1166188,85782.0,85781.0,0.4774202]
[1742478187760,0.1166297,85774.0,85773.0,0.00017486]
[1742478187960,0.2166297,85774.0,85773.0,0.00017486]
[1742478188267,0.116644,85766.0,85765.0,0.1166406]
[1742478188464,0.52517434,85774.0,85763.0,0.1166432]
[1742478188465,0.1749709,85764.0,85763.0,0.1166432]
[1742478188667,0.1749799,85760.0,85759.0,0.1166479]
[1742478188976,0.1166528,85758.0,85757.0,0.1166519]
[1742478189362,0.1931528,85758.0,85757.0,0.1941519]
[1742478189563,0.1931528,85758.0,85757.0,0.0775]
[1742478189876,0.1931528,85758.0,85750.0,0.00017486]
[1742478189877,0.116661,85751.0,85750.0,0.00017486]
[1742478190370,0.0583227,85763.0,85756.0,0.0583268]
[1742478190674,0.07364313,85765.0,85764.0,0.1166433]
[1742478191060,0.1166433,85764.0,85763.0,0.076]
[1742478191271,0.116646,85762.0,85761.0,0.4774447]
[1742478191473,0.07364313,85765.0,85764.0,0.1166433]
[1742478191674,0.11681535,85767.0,85766.0,0.1166406]
[1742478192473,0.23973535,85767.0,85766.0,0.1166406]
[1742478193474,0.1166419,85765.0,85764.0,0.1216433]
[1742478193672,0.1166419,85765.0,85764.0,0.1206433]
[1742478193877,0.11681335,85767.0,85766.0,0.1166406]
[1742478194261,0.16061335,85767.0,85766.0,0.1166406]
[1742478194466,0.00017345,85767.0,85766.0,0.1166406]
[1742478194981,0.11681265,85767.0,85766.0,0.1166406]
[1742478195564,0.47761265,85767.0,85766.0,0.1166406]
[1742478195974,0.0583203,85766.0,85762.0,0.058323]
[1742478196173,0.1166447,85763.0,85762.0,0.1749649]
[1742478196378,0.1166528,85757.0,85756.0,0.5357772]
[1742478197174,0.1166502,85759.0,85758.0,0.1166501]
[1742478197764,0.1166528,85758.0,85757.0,0.1166519]
[1742478198171,0.12635579,85758.0,85757.0,0.1166519]
[1742478199369,0.24899579,85758.0,85757.0,0.1166519]
[1742478200481,0.0324,85753.0,85746.0,0.20636727]
[1742478200676,0.39,85751.0,85736.0,0.34607901]
[1742478200983,0.5774719,85743.0,85736.0,0.34607901]
[1742478201185,0.11668,85737.0,85736.0,0.34607901]
[1742478201483,0.11668,85737.0,85736.0,0.46275971]
[1742478201691,0.0755,85738.0,85737.0,0.11668]
[1742478201869,0.00017486,85745.0,85737.0,0.159]
[1742478202080,0.00017486,85745.0,85744.0,0.1166705]
[1742478202278,0.0097123,85745.0,85744.0,0.1166705]
[1742478202494,0.1263815,85745.0,85744.0,0.1166705]
[1742478202786,0.13612626,85745.0,85744.0,0.2756705]
[1742478202982,0.13612626,85745.0,85744.0,0.159]
[1742478203282,0.13612626,85745.0,85744.0,0.2756705]
[1742478203584,0.01945706,85745.0,85744.0,0.6364705]
[1742478203772,0.01945706,85745.0,85744.0,0.7620305]
[1742478204384,0.0194794,85745.0,85744.0,0.6394705]
[1742478204682,0.0583252,85759.0,85755.0,0.1166555]
[1742478204683,0.1166548,85756.0,85755.0,0.1166555]
[1742478205982,0.0583249,85760.0,85759.0,0.0583244]
[1742478206187,0.0583249,85760.0,85759.0,0.2105244]
[1742478206575,0.218776,85760.0,85759.0,0.1522]
[1742478206788,0.218776,85760.0,85759.0,0.0794]
[1742478206789,0.57641699,85760.0,85759.0,0.0794]
[1742478207084,0.1458569,85754.0,85753.0,0.1166575]
[1742478207286,0.116661,85751.0,85750.0,0.1901623]
[1742478207486,0.1166623,85750.0,85749.0,0.1166629]
[1742478207683,0.0583292,85753.0,85752.0,0.1749833]
[1742478207878,0.058327,85757.0,85754.0,0.0583278]
[1742478208186,0.4191142,85775.0,85747.0,0.00017486]
[1742478208187,0.058318,85770.0,85763.0,0.1166447]
[1742478208380,0.11681675,85764.0,85763.0,0.3608]
[1742478208580,0.11681675,85764.0,85763.0,0.4774447]
[1742478208983,0.11681675,85764.0,85763.0,0.1166447]
[1742478209288,0.00017345,85764.0,85763.0,0.1166447]
[1742478209480,0.01634073,85764.0,85763.0,0.1166447]
[1742478209680,0.13298403,85764.0,85763.0,0.1166447]
[1742478209878,0.116646,85762.0,85761.0,0.058323]
[1742478210278,0.13281328,85762.0,85761.0,0.058323]
[1742478210576,0.01616728,85762.0,85761.0,0.058323]
[1742478210888,0.36084,85778.0,85772.0,0.1166324]
[1742478211189,0.01619366,85773.0,85772.0,0.09038151]
[1742478211380,0.01619366,85773.0,85772.0,0.0641309]
[1742478211683,0.01615366,85773.0,85772.0,0.0641309]
[1742478212192,4e-05,85774.0,85773.0,0.1166311]
[1742478212482,4e-05,85774.0,85773.0,0.3766311]
[1742478212691,0.1504,85782.0,85781.0,0.1166202]
[1742478212875,0.2670188,85782.0,85781.0,0.1166202]
[1742478213078,4e-05,85795.0,85782.0,0.1166188]
[1742478213383,0.01150241,85783.0,85778.0,0.0008]
[1742478213589,0.1166229,85779.0,85778.0,0.1166234]
[1742478213785,0.01150315,85779.0,85778.0,0.1166243]
[1742478214086,0.233,85782.0,85781.0,0.1166202]
[1742478214286,0.24446039,85782.0,85781.0,0.1166202]
[1742478214587,0.36107919,85782.0,85781.0,0.1166202]
[1742478214780,0.3496188,85782.0,85781.0,0.1166202]
[1742478214981,0.36107883,85782.0,85781.0,0.1166202]
[1742478215182,0.36107883,85782.0,85772.0,0.12256]
[1742478215183,0.1166311,85773.0,85772.0,0.1749431]
[1742478215384,0.1458338,85771.0,85770.0,0.1166351]
[1742478215584,0.1166406,85767.0,85766.0,0.1166397]
[1742478215986,0.1458406,85767.0,85766.0,0.1166397]
[1742478216291,0.1166406,85766.0,85759.0,0.3608]
[1742478216486,0.4454406,85766.0,85759.0,0.3608]
[1742478216681,0.4454406,85766.0,85761.0,0.1166467]
[1742478216992,0.9401836,85766.0,85760.0,0.1166483]
[1742478217187,0.9401836,85766.0,85759.0,0.058325]
[1742478217387,0.9401836,85766.0,85744.0,0.0583348]
[1742478217388,0.1749989,85749.0,85744.0,0.0583348]
[1742478217580,0.1166664,85747.0,85746.0,0.40441291]
[1742478217979,0.1749973,85749.0,85746.0,0.52107971]
[1742478218191,0.1166664,85747.0,85746.0,0.34607901]
[1742478218584,0.1484664,85747.0,85746.0,0.46274681]
[1742478218979,0.1484664,85747.0,85746.0,0.34607901]
[1742478219193,0.22803729,85747.0,85746.0,0.34607901]
[1742478219492,0.22803729,85747.0,85746.0,0.34907901]
[1742478219685,0.1166773,85739.0,85738.0,0.00017486]
[1742478219886,0.63989886,85739.0,85738.0,0.11685356]
[1742478220193,0.70809886,85739.0,85738.0,0.00017486]
[1742478220389,0.63689886,85739.0,85738.0,0.00017486]
[1742478220783,0.63689886,85739.0,85738.0,0.11685356]
[1742478221188,0.6937573,85739.0,85738.0,0.12185356]
[1742478221382,0.5937573,85739.0,85738.0,0.12185356]
[1742478221584,0.3608,85739.0,85738.0,0.12185356]
[1742478221991,4e-05,85740.0,85739.0,0.1166773]
[1742478222193,0.116716,85740.0,85739.0,0.1981773]
[1742478222393,4e-05,85740.0,85739.0,0.1981773]
[1742478222600,0.116716,85740.0,85739.0,0.1981773]
[1742478222796,0.0583368,85742.0,85741.0,0.1166746]
[1742478224601,0.10455061,85742.0,85741.0,0.4804746]
[1742478224796,0.10455061,85742.0,85741.0,0.4844746]
[1742478225012,0.22122381,85742.0,85741.0,1.9844746]
[1742478225303,0.22122381,85742.0,85741.0,0.1236746]
[1742478225595,0.23069405,85742.0,85741.0,0.1236746]
[1742478225995,0.23069405,85742.0,85741.0,0.007]
[1742478226301,0.23069405,85742.0,85741.0,0.1236746]
[1742478226886,0.22122381,85742.0,85741.0,0.2048746]
[1742478228203,0.1166732,85742.0,85741.0,0.2048746]
[1742478228699,0.1166732,85742.0,85741.0,0.0882]
[1742478228892,0.1166732,85742.0,85741.0,0.007]
[1742478229101,0.5573732,85742.0,85741.0,0.007]
[1742478229305,0.1166936,85727.0,85726.0,0.3312369]
[1742478229506,0.1166936,85727.0,85726.0,0.2728934]
[1742478229705,0.1166936,85727.0,85726.0,0.1943934]
[1742478229998,0.1166936,85727.0,85726.0,0.1166934]
[1742478230201,0.11671,85715.0,85712.0,0.238714]